Cogmind - Beta 14 @@@ ROGUE MODE // 2024.10.20 @ 19:02:56 Player: N.W.L Result: Destroyed by Y-54 Guardian with Gatling Laser Performance ------------- Evolutions (4) 2000 Regions Visited (21) 4200 Robots Destroyed (297) 1485 Value Destroyed (15198) 15198 Prototype IDs (22) 440 Alien Tech Used (0) 0 Bonus (5801) 5801 TOTAL SCORE: 29124 Bonus ------- High Alert Combat Kills 3504 Follower Combat Kills 1360 Entered Garrisons 800 Met Data Miner 300 Acquired ECA 300 Friendly Fire -463 Cogmind --------- Core Integrity 0/850 Matter 81/300 Energy 100/100 System Corruption 12% Temperature Cool (6) Movement Core (50) Location -6/Factory Parts ------- > --- POWER (2) -------- (None) > --- PROPULSION (4) --- Improved Medium Treads > --- UTILITY (6) ------ Hacking Suite > --- WEAPON (3) ------- (None) > --- INVENTORY (5) ---- Encrypted Comm Array Improved Thermal Shield Improved Trap Extractor (0/6) KE Penetrator Peak State ------------ > --- POWER ------------ Improved Deuterium Engine Cooled Deuterium Engine > --- PROPULSION ------- Heavy Treads Improved Heavy Treads > --- UTILITY ---------- Cryofiber Web Advanced Heat Sink Cargo Storage Unit Hardened Heavy Armor Plating > --- WEAPON ----------- Variable Charge Gun Heavy Plasma Cannon Heavy Plasma Cannon > --- INVENTORY -------- Improved Deuterium Engine Medium Treads Medium Treads Cryofiber Web Advanced Heat Sink High-capacity Storage Unit Cargo Storage Unit Experimental Sensor Array Long-range Terrain Scanner Seismic Detector Encrypted Comm Array Core Analyzer Improved Medium Armor Plating Corruption Screen System Restoration Module Improved System Restoration Module Improved System Restoration Module Long-range Tractor Beam Improved Trap Extractor Plasma Rifle Plasma Rifle Heavy Plasma Cannon Precision Grenade Launcher Long-range Missile Launcher Remote Datajack Improved Remote Datajack Flamer Makeshift Spear [Rating: 81] Favorites ----------- Power Antimatter Reactor Engine Ion Engine Power Core Light Nuclear Core Reactor Antimatter Reactor Propulsion Light Treads Treads Light Treads Leg Aluminum Leg Utility Hacking Suite Device Cryofiber Web Storage High-capacity Storage Unit Processor Corruption Screen Hackware Hacking Suite Protection Medium Insulated Plating Weapon Gatling Laser Energy Gun Gatling Laser Energy Cannon Heavy Plasma Cannon Ballistic Gun Assault Rifle Ballistic Cannon Heavy Mass Driver Launcher EMP Blaster Special Weapon Flamer Piercing Weapon Makeshift Spear Build | -11 -10 -10 -10 -9 -8 -8 -8 -8 -8 -7 -7 -7 -7 -7 -7 -7 -7 -6 -6 -6 -6 ------- Run | Yrd Mat Min Exi Min Mat Gar Mat Gar Mat Fac Was Fac Gar Fac Low Low Dat Pro Fac Gar Fac Slots Evolved 8 | . . . . . 4 . . . . 2 . . . . . . . . 2 . . Power 1 | . . . . . . . . . . . . . . . . . . . 1 . . Propulsion 2 | . . . . . 1 . . . . . . . . . . . . . 1 . . Utility 4 | . . . . . 2 . . . . 2 . . . . . . . . . . . Weapon 1 | . . . . . 1 . . . . . . . . . . . . . . . . Parts Attached 353 | . 12 1 1 3 9 36 25 47 17 12 10 3 26 41 19 6 5 8 19 31 22 Power 16 | . 1 . . . 2 . 1 2 . . 2 . . 1 . . . 1 3 3 . Engine 10 | . . . . . 2 . 1 1 . . . . . . . . . 1 3 2 . Core 3 | . 1 . . . . . . 1 . . . . . . . . . . . 1 . Reactor 3 | . . . . . . . . . . . 2 . . 1 . . . . . . . Propulsion 37 | . 2 . . 1 2 8 2 7 1 1 1 . 1 1 1 . . 2 4 2 1 Treads 37 | . 2 . . 1 2 8 2 7 1 1 1 . 1 1 1 . . 2 4 2 1 Leg . | . . . . . . . . . . . . . . . . . . . . . . Wheel . | . . . . . . . . . . . . . . . . . . . . . . Hover . | . . . . . . . . . . . . . . . . . . . . . . Flight . | . . . . . . . . . . . . . . . . . . . . . . Utility 100 | . 4 1 1 . 4 3 6 4 7 4 1 2 4 13 10 4 . 2 6 10 14 Device 68 | . 1 . . . 4 2 4 3 6 3 1 . 2 10 7 4 . 2 3 7 9 Storage 5 | . 2 1 1 . . . . . . . . . 1 . . . . . . . . Processor 2 | . . . . . . . . . . . . . . 1 . . . . 1 . . Hackware 5 | . . . . . . . 1 . 1 . . 1 . . . . . . 1 . 1 Protection 20 | . 1 . . . . 1 1 1 . 1 . 1 1 2 3 . . . 1 3 4 Artifact . | . . . . . . . . . . . . . . . . . . . . . . Weapon 200 | . 5 . . 2 1 25 16 34 9 7 6 1 21 26 8 2 5 3 6 16 7 Energy Gun 90 | . . . . 2 1 11 8 17 5 3 1 . 11 13 4 1 2 . 3 5 3 Energy Cannon 48 | . 1 . . . . 3 2 5 3 1 4 1 8 8 1 1 1 2 1 6 . Ballistic Gun 5 | . 2 . . . . 1 . . 1 . . . . . . . . . . . 1 Ballistic Cannon 1 | . . . . . . . . . . . . . 1 . . . . . . . . Launcher 28 | . 2 . . . . 4 1 7 . . . . 1 3 2 . . 1 2 3 2 Special Weapon 9 | . . . . . . . . 2 . 2 . . . . 1 . 1 . . 2 1 Impact Weapon . | . . . . . . . . . . . . . . . . . . . . . . Slashing Weapon . | . . . . . . . . . . . . . . . . . . . . . . Piercing Weapon 19 | . . . . . . 6 5 3 . 1 1 . . 2 . . 1 . . . . Special Melee Weapon . | . . . . . . . . . . . . . . . . . . . . . . Unidentified Prototypes 8 | . . . . . 2 . 1 . 1 . . . . 2 . . . . 2 . . Parts Lost 48 | . . . . 1 . 2 5 1 1 . . . . 8 2 . . 3 2 7 16 Power 7 | . . . . . . . 1 . . . . . . 1 . . . 1 . 2 2 Propulsion 13 | . . . . 1 . 2 . 1 . . . . . 2 . . . 1 2 1 3 Utility 11 | . . . . . . . 1 . . . . . . 2 1 . . . . 1 6 Weapon 17 | . . . . . . . 3 . 1 . . . . 3 1 . . 1 . 3 5 Highest Loss Streak 15 | . . . . 1 . 2 2 1 1 . . . . 3 2 . . 2 1 3 15 To Critical Strikes 1 | . . . . . . 1 . . . . . . . . . . . . . . . Average Slot Usage (%) 90 | . 99 100 100 99 88 99 99 98 89 91 92 92 90 82 81 83 76 83 81 79 74 Engine 4 | . 7 . . . 3 9 8 7 . . . . . . . . . 3 10 9 5 Core 3 | . 6 14 14 14 5 . . 1 9 7 1 . . . . . . . . 1 5 Reactor 2 | . . . . . . . . . . . 5 7 7 6 7 7 7 3 . . . Treads 20 | . 27 28 28 27 21 26 27 25 18 15 15 15 15 14 12 15 15 15 17 15 17 Device 14 | . 7 . . . 12 19 20 17 11 28 27 28 14 12 20 15 23 23 16 19 16 Storage 11 | . 19 28 28 28 18 9 9 9 9 7 7 7 7 7 7 7 7 7 6 6 5 Hackware 4 | . . . . . . . 4 9 15 7 2 2 7 7 7 7 7 7 6 1 . Protection 3 | . . . . . . 7 2 . . . 7 5 14 9 2 6 . . 1 4 4 Energy Gun 13 | . 2 . . 22 27 23 24 22 22 18 2 . 16 12 11 9 1 10 10 5 3 Energy Cannon 5 | . 1 . . . . . . 2 4 2 20 23 6 7 6 12 1 11 8 12 10 Ballistic Gun 1 | . 12 . . . . . . . . . . . . . . . . . . . . Launcher 3 | . 11 28 28 5 . . . . . . . . . . . . . . . . 1 Peak Build Rating 81 | 6 13 13 13 15 28 28 36 54 52 65 73 72 78 78 69 71 61 67 77 81 77 Average Rating 47 | 6 9 13 13 14 19 25 28 39 50 62 69 70 70 71 65 68 56 60 69 72 61 On Entrance 44 | 6 6 13 13 13 15 21 27 36 50 50 65 71 68 78 58 68 60 60 59 75 71 Naked Turns 15 | . . . . . . . . . . . . . . . . . . . . . 15 Heaviest Build 206 | 11 37 57 57 57 60 70 63 70 73 76 97 101 206 206 194 194 180 183 186 203 194 Greatest Support 145 | 20 40 40 40 40 63 69 63 90 90 98 100 100 105 105 98 98 98 98 145 145 126 Greatest Overweight (x) 2 | . . 1 1 1 1 1 1 1 . . . 1 1 2 2 1 1 1 1 2 1 Average Overweight (x) . | . . . 1 1 . . . . . . . . . 1 1 1 1 1 1 1 . Largest Inventory Capacity 30 | 8 15 20 20 20 20 20 20 20 20 20 20 20 30 30 30 30 30 30 30 30 30 Average Capacity 23 | 8 9 18 20 20 20 20 20 20 20 20 20 20 21 30 30 30 30 30 30 30 27 Most Carried 30 | 6 15 16 18 20 20 20 20 20 20 20 20 20 30 30 30 30 30 30 30 30 28 Average Carried 22 | 6 7 15 16 18 18 19 19 19 19 18 19 20 21 29 29 29 29 29 29 26 23 Final Capacity 30 | 8 15 20 20 20 20 20 20 20 20 20 20 20 30 30 30 30 30 30 30 30 5 Final Carried 30 | 6 14 16 16 20 19 20 20 20 19 20 20 20 30 26 28 30 29 30 30 27 4 Class Distribution -------------------- 21% | Mutant 20% | Hauler-Tank 12% | Hauler-Gunner 10% | Tank 7% | Gunner 4% | Hauler-Skirmisher 4% | Bomber 3% | Scavenger-Gunner 3% | Hauler-Mutant Dominant Class ---------------- Mutant | -10/Materials Mutant | -10/Mines Mutant | -10/Exiles Mutant | -9/Mines Bomber | -8/Materials Bomber | -8/Garrison Scavenger-Gunner | -8/Materials Gunner | -8/Garrison Hacker-Gunner | -8/Materials Skirmisher | -7/Factory Tank | -7/Waste Tank | -7/Factory Tank | -7/Garrison Hauler-Tank | -7/Factory Hauler-Skirmisher | -7/Lower Caves Hauler-Tank | -7/Lower Caves Hauler-Mutant | -7/Data Miner Hauler-Gunner | -6/Proximity Caves Hauler-Gunner | -6/Factory Hauler-Tank | -6/Garrison Hauler-Tank | -6/Factory Resources | -11 -10 -10 -10 -9 -8 -8 -8 -8 -8 -7 -7 -7 -7 -7 -7 -7 -7 -6 -6 -6 -6 ----------- Run | Yrd Mat Min Exi Min Mat Gar Mat Gar Mat Fac Was Fac Gar Fac Low Low Dat Pro Fac Gar Fac Matter Collected 5020 | 200 544 35 . 50 50 438 321 695 185 130 60 . 345 535 309 135 . 166 189 464 169 Remotely 293 | . . . . . . . . . . . . . . 158 . . . . . . 135 Salvage Created 11364 | . 940 143 . 96 . 1008 747 1177 646 299 570 . 1164 1549 322 54 . 204 918 919 608 Parts 522 | . 64 11 . 14 . 69 49 68 23 15 10 . 34 55 6 4 . 13 23 35 29 Haulers Intercepted 6 | . 1 . . . . . . . 2 . . . . 2 . . . . 1 . . Recyclers Shooed 10 | . 2 . . 1 . . . . 1 . . . . 1 . . . . 3 . 2 Parts Field Recycled . | . . . . . . . . . . . . . . . . . . . . . . Retrieved Matter . | . . . . . . . . . . . . . . . . . . . . . . Parts Self-Destructed 17 | . . . . . . . . . . . . . . . 2 4 . 11 . . . Prevented . | . . . . . . . . . . . . . . . . . . . . . . Kills | -11 -10 -10 -10 -9 -8 -8 -8 -8 -8 -7 -7 -7 -7 -7 -7 -7 -7 -6 -6 -6 -6 ------- Run | Yrd Mat Min Exi Min Mat Gar Mat Gar Mat Fac Was Fac Gar Fac Low Low Dat Pro Fac Gar Fac Combat Hostiles Destroyed 236 | . 16 6 . 4 . 26 20 35 12 6 . . 15 32 6 1 . 6 12 23 16 Melee 1 | . . . . . . . 1 . . . . . . . . . . . . . . Guns 142 | . 8 . . 4 . 18 19 26 11 6 . . 11 22 2 . . 2 6 6 1 Cannons 20 | . . . . . . 1 . . . . . . . 1 . 1 . 2 3 7 5 AOE 64 | . 8 6 . . . 6 . 9 . . . . 3 9 3 . . 2 2 8 8 Classes Destroyed 22 | . 9 . . 1 . 2 3 . . . 1 . 1 1 2 1 . . . . 1 Worker 14 | . 4 . . 1 . . 2 . 2 . . . . 2 . . . . 1 . 2 Builder 12 | . 5 . . . . . . . . 1 . . . . . . . . 1 . 5 Tunneler 6 | . 1 2 . . . . 1 . . . . . . . . . . . . . 2 Hauler 6 | . 1 . . . . . . . 2 . . . . 2 . . . . 1 . . Recycler 7 | . 1 . . . . . 1 . . . . . . 4 . . . . 1 . . Minesweeper 1 | . . . . . . . . . . . . . . . 1 . . . . . . Mechanic 3 | . . . . . . . . . . . . . . 2 . . . . 1 . . Operator 2 | . 1 . . . . . 1 . . . . . . . . . . . . . . Watcher 9 | . 3 . . . . . 4 1 . . . . . . . . . . 1 . . Swarmer 61 | . 6 6 . 3 . 3 5 12 . . . . 7 3 . . . 3 . 11 2 Grunt 95 | . 10 . . . . 11 8 14 8 1 . . 4 20 4 . . . 3 5 7 Brawler 4 | . . . . . . . 1 1 1 . . . . . . . . . . . 1 Duelist 7 | . . . . 1 . 1 . 1 . . . . 1 1 1 . . . 1 . . Protector 4 | . . . . . . . 1 . . . . . . 1 . . . . . . 2 Sentry 32 | . . . . . . 8 4 6 3 . . . . 1 1 . . . 3 3 3 Specialist 1 | . . . . . . . . . . . . . 1 . . . . . . . . Hunter 14 | . . . . . . . 1 1 . 5 . . 1 1 . . . 1 2 2 . Programmer 15 | . . . . . . 3 . . . . . . 1 5 . . . 1 3 2 . Heavy 1 | . . . . . . . . . . . . . . . . . . . . . 1 Samaritan 2 | . . . . . . . . . . . . . . . 2 . . . . . . Thug 1 | . . . . . . . . . . . . . . . . . . 1 . . . Martyr 1 | . . . . . . . . . . . 1 . . . . . . . . . . Mutant 1 | . . . . . . . . . . . . . . . . 1 . . . . . Best Kill Streak 13 | . 8 4 . 3 . 8 4 5 4 6 . . 4 6 3 1 . 3 6 6 13 Combat Bots Only 10 | . 3 3 . 3 . 8 3 5 3 3 . . 4 5 3 1 . 3 5 6 10 Max Kills in Single Turn 4 | . 3 4 . 1 . 3 2 3 2 1 1 . 3 4 1 1 . 1 1 2 3 Gunslinging 1 | . . . . . . 1 1 . 1 . . . 1 1 . . . . . . . Exploded 4 | . 1 3 . . . 3 . 3 . . . . 3 4 1 . . 1 1 2 2 Melee 1 | . . . . . . . 1 . . . . . . . . . . . . . . Uniques/NPCs Destroyed . | . . . . . . . . . . . . . . . . . . . . . . Combat | -11 -10 -10 -10 -9 -8 -8 -8 -8 -8 -7 -7 -7 -7 -7 -7 -7 -7 -6 -6 -6 -6 -------- Run | Yrd Mat Min Exi Min Mat Gar Mat Gar Mat Fac Was Fac Gar Fac Low Low Dat Pro Fac Gar Fac Hostile Shots Fired 1091 | . 33 5 . 14 2 74 60 94 38 16 . . 33 140 75 26 . 25 126 151 179 Missed 325 | . 8 . . 4 1 23 16 29 10 5 . . 9 47 26 8 . 8 42 34 55 Damage Taken 11725 | . 292 42 . 131 42 709 614 882 480 218 . . 617 1711 495 109 . 332 878 1763 2410 Core 1699 | . 27 15 . 10 . 78 88 238 136 34 . . 57 115 38 . . 13 87 126 637 Absorbed by Shields . | . . . . . . . . . . . . . . . . . . . . . . Reduced by Siege Mode 247 | . . . . . . . . . 15 . . . . 38 . . . . 22 97 75 Ignored by Resistances 57 | . . . . . . . . . . . . . . 42 . . . . . . 15 Regen/Repaired (Parts) 556 | . . . . . . . 11 . . 21 94 . 272 158 . . . . . . . Core Remaining (%) 60 | 100 . . . 79 . . . . 1 . . . . . . . . 63 . . . Volleys Fired 672 | . 55 3 . 9 1 45 73 75 31 21 8 . 48 82 35 12 1 16 47 73 37 Largest 3 | . 2 2 . 2 3 3 3 3 3 3 3 . 3 3 3 3 1 3 3 3 3 Hottest 405 | . 66 66 . 130 195 220 213 240 250 240 270 . 270 270 240 239 7 250 250 405 255 Shots Fired 1418 | . 110 6 . 18 3 112 170 155 77 39 24 . 115 178 64 17 1 24 103 134 68 Gun 923 | . 80 . . 18 3 93 156 133 69 29 . . 62 129 33 4 . 13 49 33 19 Cannon 388 | . . . . . . 7 11 15 8 9 24 . 52 40 25 13 . 9 50 92 33 Launcher 105 | . 30 6 . . . 12 3 7 . . . . 1 9 6 . . 2 4 9 16 Special 2 | . . . . . . . . . . 1 . . . . . . 1 . . . . Kinetic 68 | . 67 . . . . . . . . . . . . . . . . . . . 1 Thermal 1230 | . . . . 18 3 100 167 148 77 38 24 . 114 169 58 17 . 22 99 125 51 Explosive 52 | . . . . . . . . 5 . . . . 1 9 6 . . 2 4 9 16 Electromagnetic 66 | . 43 6 . . . 12 3 2 . . . . . . . . . . . . . Robot Hit Streak 40 | . 8 . . 9 1 26 29 13 25 13 11 . 24 20 11 25 26 5 40 17 21 Robot Miss Streak 9 | . 5 . . 5 9 4 9 7 4 5 1 . 4 6 4 . . 2 1 4 2 Penetration Max 1 | . . . . . . . . . . . . . . . . . . . . . 1 Secondary Targets 23 | . 2 . . . . 4 1 5 3 . . . 4 4 . . . . . . . Max Gunslinging Chain 1 | . 1 . . . . 1 1 1 1 . . . 1 1 . . . . . . . Shots Hit Robots 890 | . 56 . . 15 2 77 118 86 63 22 14 . 80 119 37 10 1 11 70 60 49 Core Hits 824 | . 43 8 . 22 1 143 139 79 40 20 5 . 55 97 18 4 . 8 38 45 59 Critical Kills 7 | . 1 . . . . . . . . . . . 2 . . . . . 2 2 . Critical Parts Destroyed . | . . . . . . . . . . . . . . . . . . . . . . Critical Strikes 17 | . 1 . . . . . 1 . . . . . 2 1 3 . . 1 5 2 1 Burn 10 | . . . . . . . 1 . . . . . . 1 3 . . 1 3 . 1 Meltdown 6 | . . . . . . . . . . . . . 2 . . . . . 2 2 . Destroy 1 | . 1 . . . . . . . . . . . . . . . . . . . . Melee Attacks 39 | . . . . . . 13 12 6 . 1 1 . . 6 . . . . . . . Impact . | . . . . . . . . . . . . . . . . . . . . . . Slashing . | . . . . . . . . . . . . . . . . . . . . . . Piercing 39 | . . . . . . 13 12 6 . 1 1 . . 6 . . . . . . . Sneak Attacks 3 | . . . . . . . 2 . . . 1 . . . . . . . . . . Combat Hostiles . | . . . . . . . . . . . . . . . . . . . . . . Follow-up Attacks . | . . . . . . . . . . . . . . . . . . . . . . Damage Inflicted 30778 | . 1498 281 . 186 14 1885 1953 2685 1512 487 519 . 2413 4966 1352 282 . 621 2398 3979 3747 Guns 13796 | . 586 . . 184 14 1233 1642 1850 1479 487 . . 1118 2444 617 104 . 165 1005 498 370 Cannons 5555 | . . . . . . 33 . . 33 . 453 . 1091 488 287 178 . 159 962 1100 771 Explosions 11110 | . 889 250 . . . 619 135 835 . . . . 204 2034 448 . . 297 431 2381 2587 Melee 235 | . . . . . . . 169 . . . 66 . . . . . . . . . . Ramming 82 | . 23 31 . 2 . . 7 . . . . . . . . . . . . . 19 Kinetic 504 | . 459 . . . . . . . . . . . . . . . . . . . 45 Thermal 19338 | . 264 . . 184 14 1425 1642 1850 1512 487 453 . 2209 2932 904 282 . 324 1967 1598 1291 Explosive 8863 | . . . . . . . . 676 . . . . 204 2034 448 . . 297 431 2381 2392 Electromagnetic 1756 | . 752 250 . . . 460 135 159 . . . . . . . . . . . . . Impact . | . . . . . . . . . . . . . . . . . . . . . . Slashing . | . . . . . . . . . . . . . . . . . . . . . . Piercing 235 | . . . . . . . 169 . . . 66 . . . . . . . . . . Highest Corruption 12 | . 1 1 1 1 . . 7 7 7 . . . . 5 5 5 5 5 1 2 12 Average Corruption 4 | . 1 1 1 1 . . 6 7 6 . . . . 4 5 5 5 5 1 1 11 Corruption Purged 9 | . . . . . . . . . 7 . . . . . . . . . . 2 . Corruption Blocked . | . . . . . . . . . . . . . . . . . . . . . . Effects 289 | . 5 4 3 15 . . 42 66 15 . . . . 26 39 26 4 25 3 13 3 Message Errors 69 | . 3 2 . 5 . . 8 18 2 . . . . 4 7 11 . 6 1 2 . Matter Fused 65 | . 1 2 . 2 . . 12 17 3 . . . . 6 7 7 1 3 . 3 1 Heat Flow Errors 30 | . . . . 1 . . 1 7 2 . . . . 6 6 3 . 3 . 1 . Energy Discharges 37 | . 1 . . 3 . . 6 3 3 . . . . 2 5 3 2 6 1 1 1 Parts Rejected 3 | . . . . . . . . . . . . . . 1 . . . 1 . 1 . Parts Fused 3 | . . . . . . . . . . . . . . . 1 1 . 1 . . . Data Loss (minor) 40 | . . . 2 4 . . 8 7 3 . . . . 6 4 . 1 3 . 2 . Data Loss (major) 15 | . . . 1 . . . 1 5 1 . . . . 1 3 . . 2 . 1 . Misfires 9 | . . . . . . . 2 4 . . . . . . 1 . . . 1 . 1 Alerts 8 | . . . . . . . 1 3 1 . . . . . 3 . . . . . . Weapon Failures 10 | . . . . . . . 3 2 . . . . . . 2 1 . . . 2 . Overload Shots 1 | . . . . . . . . . . . . . . . . . . . . 1 . Effects 1 | . . . . . . . . . . . . . . . . . . . . 1 . Energy Bleed 1 | . . . . . . . . . . . . . . . . . . . . 1 . Overflow Damage 564 | . 32 6 . . . . 8 77 . . . . 27 56 37 . . 25 44 169 83 Projectiles 142 | . . . . . . . . . . . . . . 26 37 . . . 44 35 . Explosions 411 | . 32 3 . . . . . 77 . . . . 27 30 . . . 25 . 134 83 Melee 11 | . . 3 . . . . 8 . . . . . . . . . . . . . . Knockbacks 1 | . . . . . . . 1 . . . . . . . . . . . . . . Impact 1 | . . . . . . . 1 . . . . . . . . . . . . . . Kinetic . | . . . . . . . . . . . . . . . . . . . . . . Secondary . | . . . . . . . . . . . . . . . . . . . . . . Self-Inflicted Damage 743 | . 32 . . . . 5 34 46 . . . . 70 254 . . . 47 . 93 162 Shots 22 | . 3 . . . . 1 2 1 . . . . 1 4 . . . 2 . 4 4 Rammed 15 | . 3 4 . 1 . . . . . . . . . . . . . . 1 . 6 Targets Rammed 16 | . 3 4 . 1 . . 1 . . . . . . . . . . . 1 . 6 Kicked . | . . . . . . . . . . . . . . . . . . . . . . Crushed 1 | . . . . . . . 1 . . . . . . . . . . . . . . Highest Temperature 493 | . 84 24 . 207 180 53 366 370 462 92 230 . 219 478 197 396 . 448 323 380 493 Average Temperature 107 | . 22 11 . 72 80 18 153 96 160 47 90 . 98 106 94 147 . 217 108 130 176 Received Heat Transfer 3119 | . 114 . . . 18 276 243 351 225 . . . 72 543 126 20 . 9 171 321 630 Effects 9 | . . . . . . . . 3 1 . . . . 3 . . . . 1 1 . Shutdowns 1 | . . . . . . . . . . . . . . 1 . . . . . . . Energy Bleed 1 | . . . . . . . . . 1 . . . . . . . . . . . . Interference 7 | . . . . . . . . 3 . . . . . 2 . . . . 1 1 . Siege Activations 19 | . . . . . . . . . 3 . . . . 2 . . . . 3 8 3 Total Turns 291 | . . . . . . . . . 30 . . . . 23 . . . . 56 121 61 Longest Duration 40 | . . . . . . . . . 20 . . . . 16 . . . . 29 40 31 Robots Corrupted 3 | . 1 1 . . . 1 . . . . . . . . . . . . . . . Combat Hostiles 1 | . . . . . . 1 . . . . . . . . . . . . . . . Parts Fried 13 | . 9 4 . . . . . . . . . . . . . . . . . . . Impact Corruptions 2 | . . 2 . . . . . . . . . . . . . . . . . . . Robots Melted 13 | . . . . . . . . . 1 . . . 4 . 1 . . . 3 2 2 Combat Hostiles 8 | . . . . . . . . . 1 . . . 1 . 1 . . . 1 2 2 Parts Melted 83 | . 1 . . . . . 2 11 5 2 . . 10 12 4 1 . . 17 8 10 Heat Transferred 35505 | . 350 . . 225 15 1740 2382 3811 3350 1100 700 . 4200 6046 1838 524 . 634 3718 2735 2137 Parts Sabotaged . | . . . . . . . . . . . . . . . . . . . . . . Parts Stolen . | . . . . . . . . . . . . . . . . . . . . . . Parts Stripped . | . . . . . . . . . . . . . . . . . . . . . . Power Chain Reactions 11 | . 7 2 . . . 2 . . . . . . . . . . . . . . . Alert | -11 -10 -10 -10 -9 -8 -8 -8 -8 -8 -7 -7 -7 -7 -7 -7 -7 -7 -6 -6 -6 -6 ------- Run | Yrd Mat Min Exi Min Mat Gar Mat Gar Mat Fac Was Fac Gar Fac Low Low Dat Pro Fac Gar Fac Peak Influence 2102 | . 182 215 . 86 121 1636 901 2102 1024 271 87 . 1820 1495 . . . . 246 1286 1164 Initial 1024 | . . 49 . . 22 78 797 364 1024 231 84 . . 955 . . . . . 130 674 Average 651 | . 102 74 . 31 82 891 628 1245 637 222 65 . 1117 1097 . . . . 91 850 850 Maximum Alert Level 5 | . . 1 . . . 5 3 5 3 1 . . 5 4 . . . . 1 4 4 Low Security (%) 33 | 100 100 72 . 100 100 9 . . . 21 100 100 9 . . . . . 98 4 . Level 1 6 | . . 27 . . . 9 . 2 8 78 . . . . . . . . 1 13 . Level 2 12 | . . . . . . 9 68 14 54 . . . 5 . . . . . . 5 13 Level 3 26 | . . . . . . 42 31 10 36 . . . 35 63 . . . . . 45 84 Level 4 17 | . . . . . . 21 . 52 . . . . 31 36 . . . . . 30 2 Level 5 4 | . . . . . . 6 . 19 . . . . 17 . . . . . . . . High Security . | . . . . . . . . . . . . . . . . . . . . . . Max Security . | . . . . . . . . . . . . . . . . . . . . . . Squads Dispatched 43 | . 3 . . . . . 7 . 3 3 . . . 18 . . . . 1 . 8 Investigation 9 | . . . . . . . 1 . 1 3 . . . 4 . . . . . . . Extermination 5 | . . . . . . . . . . . . . . 4 . . . . 1 . . Reinforcement 16 | . 3 . . . . . 2 . 2 . . . . 3 . . . . . . 6 Assault 6 | . . . . . . . 1 . . . . . . 3 . . . . . . 2 Garrison 7 | . . . . . . . 3 . . . . . . 4 . . . . . . . Intercept . | . . . . . . . . . . . . . . . . . . . . . . Searches Triggered . | . . . . . . . . . . . . . . . . . . . . . . Data Miner Redirects 1 | . . . . . . . . . . . . . . . . . . . . . 1 Construction Impeded 1 | . . . . . . . . . . . . . . . . . . . . . 1 Haulers Reinforced 3 | . . . . . . . . . . . . . . 2 . . . . . . 1 Active Scanning Responses . | . . . . . . . . . . . . . . . . . . . . . . Cargo Convoy Interrupts . | . . . . . . . . . . . . . . . . . . . . . . Stealth | -11 -10 -10 -10 -9 -8 -8 -8 -8 -8 -7 -7 -7 -7 -7 -7 -7 -7 -6 -6 -6 -6 --------- Run | Yrd Mat Min Exi Min Mat Gar Mat Gar Mat Fac Was Fac Gar Fac Low Low Dat Pro Fac Gar Fac Distress Signals 5 | . . . . . 1 . . . 1 . . . . 1 . . . . 1 . 1 Communications Jammed . | . . . . . . . . . . . . . . . . . . . . . . Distress Signals . | . . . . . . . . . . . . . . . . . . . . . . Times Spotted 343 | . 26 6 . 7 5 35 37 41 19 7 . . 26 46 6 4 . 7 18 26 27 Peak Tracking Total 11 | . 4 3 . 2 3 8 5 7 4 2 . . 4 5 3 3 . 3 5 6 11 Tactical Retreats 25 | . 2 . . . . 4 5 3 1 . . . . 4 . . . . 1 3 2 Traps | -11 -10 -10 -10 -9 -8 -8 -8 -8 -8 -7 -7 -7 -7 -7 -7 -7 -7 -6 -6 -6 -6 ------- Run | Yrd Mat Min Exi Min Mat Gar Mat Gar Mat Fac Was Fac Gar Fac Low Low Dat Pro Fac Gar Fac Traps Triggered 17 | . 2 . . . . 8 1 1 1 2 . . 1 . . . . . 1 . . Indirectly 6 | . 1 . . . . 5 . . . . . . . . . . . . . . . Trap Hack Attempts . | . . . . . . . . . . . . . . . . . . . . . . Triggered . | . . . . . . . . . . . . . . . . . . . . . . Disarmed . | . . . . . . . . . . . . . . . . . . . . . . Reprogrammed . | . . . . . . . . . . . . . . . . . . . . . . Reused . | . . . . . . . . . . . . . . . . . . . . . . Traps Extracted . | . . . . . . . . . . . . . . . . . . . . . . Installed . | . . . . . . . . . . . . . . . . . . . . . . Triggered 3 | . . 1 . . . . . . . . . . . . . 2 . . . . . Most Traps Carried 2 | . . . . . . . . . . . . . . . 2 . . . . . . Machines | -11 -10 -10 -10 -9 -8 -8 -8 -8 -8 -7 -7 -7 -7 -7 -7 -7 -7 -6 -6 -6 -6 ---------- Run | Yrd Mat Min Exi Min Mat Gar Mat Gar Mat Fac Was Fac Gar Fac Low Low Dat Pro Fac Gar Fac Machines Disabled 54 | . 1 . . . . 12 1 12 1 . . . 10 5 . 1 . . 1 6 4 Max in Single Turn 2 | . 1 . . . . 2 1 2 1 . . . 2 2 . 1 . . 1 1 1 Garrison Access 1 | . . . . . . . . . . . . . . 1 . . . . . . . Garrison Relay 20 | . . . . . . 8 . 4 . . . . 4 . . . . . . 4 . Phase Generator 4 | . . . . . . 1 . 1 . . . . 1 . . . . . . 1 . Machines Repaired . | . . . . . . . . . . . . . . . . . . . . . . Machines Dismantled 1 | . . . . . . . . . . . . . . . . . . . . 1 . Machines Sabotaged . | . . . . . . . . . . . . . . . . . . . . . . Overloaded Fab Kills . | . . . . . . . . . . . . . . . . . . . . . . Hacking | -11 -10 -10 -10 -9 -8 -8 -8 -8 -8 -7 -7 -7 -7 -7 -7 -7 -7 -6 -6 -6 -6 --------- Run | Yrd Mat Min Exi Min Mat Gar Mat Gar Mat Fac Was Fac Gar Fac Low Low Dat Pro Fac Gar Fac Machines Accessed 57 | . 5 . 1 . 3 4 7 3 7 5 . 1 3 6 . . 3 . 6 3 . Terminals 39 | . 4 . . . 2 4 5 3 7 1 . . 3 3 . . . . 4 3 . Fabricators 3 | . . . . . . . . . . 2 . . . . . . . . 1 . . Repair Stations 2 | . . . . . . . 1 . . 1 . . . . . . . . . . . Recycling Units 1 | . 1 . . . . . . . . . . . . . . . . . . . . Scanalyzers 1 | . . . . . . . . . . 1 . . . . . . . . . . . Garrison Access 7 | . . . . . 1 . 1 . . . . 1 . 3 . . . . 1 . . Total Hacks 175 | . 14 . 1 . 9 6 26 8 29 11 . 2 5 14 . . 23 . 21 6 . Successful 97 | . 10 . 1 . 4 2 12 4 15 6 . 1 3 3 . . 23 . 10 3 . Failed 77 | . 4 . . . 4 4 14 4 14 5 . 1 2 11 . . . . 11 3 . Catastrophic 14 | . 1 . . . 1 3 . . 4 . . . . 3 . . . . 1 1 . Database Lockouts 1 | . . . . . 1 . . . . . . . . . . . . . . . . Manual 86 | . 13 . . . 6 . 17 2 24 4 . . . 7 . . . . 13 . . Terminals 123 | . 13 . . . 7 6 20 8 29 2 . . 5 10 . . . . 17 6 . Fabricators 8 | . . . . . . . . . . 6 . . . . . . . . 2 . . Repair Stations 6 | . . . . . . . 4 . . 2 . . . . . . . . . . . Recycling Units 1 | . 1 . . . . . . . . . . . . . . . . . . . . Scanalyzers 1 | . . . . . . . . . . 1 . . . . . . . . . . . Garrison Access 12 | . . . . . 2 . 2 . . . . 2 . 4 . . . . 2 . . Terminal Hacks 62 | . 2 . 1 . 3 2 6 3 11 1 . . 3 1 . . 23 . 3 3 . Record 2 | . . . 1 . . . . . . . . . . . . . 1 . . . . Part Schematic 13 | . 1 . . . . . . . . . . . . . . . 12 . . . . Robot Schematic 8 | . . . . . . . . . . . . . . . . . 7 . 1 . . Robot Analysis 3 | . 1 . . . 2 . . . . . . . . . . . . . . . . Prototype ID Bank 3 | . . . . . . . . . . . . . . . . . 3 . . . . Open Door 2 | . . . . . . . . 1 . . . . 1 . . . . . . . . Branch Access Points 3 | . . . . . . . . . 1 1 . . . 1 . . . . . . . Emergency Access Points 4 | . . . . . . 1 . 1 . . . . 1 . . . . . . 1 . Terminal Index 1 | . . . . . . . . . 1 . . . . . . . . . . . . Alert Level 6 | . . . . . . . 3 . 2 . . . . . . . . . 1 . . Unreport Threat 7 | . . . . . . . 3 . 4 . . . . . . . . . . . . Locate Traps 2 | . . . . . 1 . . . 1 . . . . . . . . . . . . Zone Layout 3 | . . . . . . . . . 2 . . . . . . . . . 1 . . Garrison Registry 1 | . . . . . . . . . . . . . . . . . . . . 1 . Security Stations 4 | . . . . . . 1 . 1 . . . . 1 . . . . . . 1 . Fabricator Hacks 2 | . . . . . . . . . . 2 . . . . . . . . . . . Load Schematic 2 | . . . . . . . . . . 2 . . . . . . . . . . . Repair Station Hacks 4 | . . . . . . . 3 . . 1 . . . . . . . . . . . Scan Component 3 | . . . . . . . 2 . . 1 . . . . . . . . . . . Repair 1 | . . . . . . . 1 . . . . . . . . . . . . . . Recycling Unit Hacks 1 | . 1 . . . . . . . . . . . . . . . . . . . . Retrieve Components 1 | . 1 . . . . . . . . . . . . . . . . . . . . Scanalyzer . | . . . . . . . . . . . . . . . . . . . . . . Garrison Access Hacks 6 | . . . . . 1 . 1 . . . . 1 . 1 . . . . 2 . . Unlock Access 4 | . . . . . 1 . 1 . . . . 1 . . . . . . 1 . . Seal Access 1 | . . . . . . . . . . . . . . 1 . . . . . . . Coupler Status 1 | . . . . . . . . . . . . . . . . . . . 1 . . Unauthorized Hacks 22 | . 7 . . . . . 2 1 4 2 . . . 1 . . . . 5 . . Terminals 20 | . 7 . . . . . 2 1 4 . . . . 1 . . . . 5 . . Assimilate 3 | . . . . . . . . . 2 . . . . . . . . . 1 . . Botnet 3 | . 2 . . . . . . . . . . . . . . . . . 1 . . Disrupt 1 | . . . . . . . . . 1 . . . . . . . . . . . . Operators 4 | . 1 . . . . . 1 . 1 . . . . . . . . . 1 . . Skim 7 | . 4 . . . . . 1 . . . . . . . . . . . 2 . . Search 1 | . . . . . . . . . . . . . . 1 . . . . . . . Override 1 | . . . . . . . . 1 . . . . . . . . . . . . . Fabricators 1 | . . . . . . . . . . 1 . . . . . . . . . . . Prioritize 1 | . . . . . . . . . . 1 . . . . . . . . . . . Repair Stations 1 | . . . . . . . . . . 1 . . . . . . . . . . . Patch 1 | . . . . . . . . . . 1 . . . . . . . . . . . Recycling Units . | . . . . . . . . . . . . . . . . . . . . . . Scanalyzers . | . . . . . . . . . . . . . . . . . . . . . . Garrison Access . | . . . . . . . . . . . . . . . . . . . . . . Data Cores Recovered . | . . . . . . . . . . . . . . . . . . . . . . Used . | . . . . . . . . . . . . . . . . . . . . . . Hacking Detections 44 | . 4 . . . 2 3 6 2 7 5 . 1 1 5 . . . . 5 3 . Full Trace Events 12 | . . . . . . 2 2 . 2 2 . . . 3 . . . . . 1 . Feedback Events 1 | . . . . . . . 1 . . . . . . . . . . . . . . Corruption 1 | . . . . . . . 1 . . . . . . . . . . . . . . Feedback Blocked . | . . . . . . . . . . . . . . . . . . . . . . Robot Schematics Acquired 8 | . . . . . . . . . . . . . . . . . 7 . 1 . . Robots Built . | . . . . . . . . . . . . . . . . . . . . . . Authchips . | . . . . . . . . . . . . . . . . . . . . . . Time . | . . . . . . . . . . . . . . . . . . . . . . Total Robot Build Rating . | . . . . . . . . . . . . . . . . . . . . . . Part Schematics Acquired 13 | . 1 . . . . . . . . . . . . . . . 12 . . . . Parts Built . | . . . . . . . . . . . . . . . . . . . . . . Authchips . | . . . . . . . . . . . . . . . . . . . . . . Time . | . . . . . . . . . . . . . . . . . . . . . . Total Part Build Rating . | . . . . . . . . . . . . . . . . . . . . . . Parts Repaired 1 | . . . . . . . 1 . . . . . . . . . . . . . . Time 136 | . . . . . . . 136 . . . . . . . . . . . . . . Parts Recycled . | . . . . . . . . . . . . . . . . . . . . . . Recycled Matter . | . . . . . . . . . . . . . . . . . . . . . . Retrieved Matter . | . . . . . . . . . . . . . . . . . . . . . . Retrieved Components 9 | . 9 . . . . . . . . . . . . . . . . . . . . Parts Scanalyzed . | . . . . . . . . . . . . . . . . . . . . . . Part Schematics Acquired . | . . . . . . . . . . . . . . . . . . . . . . Parts Damaged . | . . . . . . . . . . . . . . . . . . . . . . Bothacking | -11 -10 -10 -10 -9 -8 -8 -8 -8 -8 -7 -7 -7 -7 -7 -7 -7 -7 -6 -6 -6 -6 ------------ Run | Yrd Mat Min Exi Min Mat Gar Mat Gar Mat Fac Was Fac Gar Fac Low Low Dat Pro Fac Gar Fac Used RIF Installer . | . . . . . . . . . . . . . . . . . . . . . . Robots Hacked 2 | . . . . . . . . . . 1 . . . . . . 1 . . . . Non-combat 1 | . . . . . . . . . . 1 . . . . . . . . . . . Combat 1 | . . . . . . . . . . . . . . . . . 1 . . . . Robot Hacks Applied 2 | . . . . . . . . . . 1 . . . . . . 1 . . . . parse_system 1 | . . . . . . . . . . . . . . . . . 1 . . . . find_chute 1 | . . . . . . . . . . 1 . . . . . . . . . . . Relay Couplers Released 87 | . . . . . . 32 . 16 . . . . 17 3 . . . . . 19 . Machine Destruction 84 | . . . . . . 32 . 16 . . . . 17 . . . . . . 19 . Programmers 3 | . . . . . . . . . . . . . . 3 . . . . . . . Fabnet Peak Effective % . | . . . . . . . . . . . . . . . . . . . . . . Robots Rewired 12 | . . . . . . . . 8 . . . . . . . 4 . . . . . Allies Hacked . | . . . . . . . . . . . . . . . . . . . . . . Hacks Repelled . | . . . . . . . . . . . . . . . . . . . . . . Allies | -11 -10 -10 -10 -9 -8 -8 -8 -8 -8 -7 -7 -7 -7 -7 -7 -7 -7 -6 -6 -6 -6 -------- Run | Yrd Mat Min Exi Min Mat Gar Mat Gar Mat Fac Was Fac Gar Fac Low Low Dat Pro Fac Gar Fac Total Allies 39 | . . 3 . . . . . 8 1 . 20 . 3 . . 4 . . . . . Largest Group 20 | . . 3 3 3 3 3 . 6 1 . 20 19 19 15 . 4 4 4 1 . . Highest-Rated Group 519 | . . 40 40 40 40 40 . 94 10 . 519 484 484 462 . 124 124 124 26 . . Highest-Rated Ally 62 | . . 16 16 16 16 16 . 25 10 . 35 31 62 62 . 31 31 31 26 . . Total Orders 30 | . . . . . . 8 . 14 3 . . . . . . . . 5 . . . STAY 15 | . . . . . . 4 . 7 2 . . . . . . . . 2 . . . ROAM 1 | . . . . . . . . 1 . . . . . . . . . . . . . FOLLOW 14 | . . . . . . 4 . 6 1 . . . . . . . . 3 . . . Ally Attacks 305 | . . . . 17 10 48 . 32 . . . . 86 75 . 21 . 16 . . . Total Damage 4383 | . . . . 199 93 542 . 439 . . . . 1057 1543 . 227 . 283 . . . Kills 53 | . . . . 3 2 10 . 6 . . . . 18 10 . 3 . 1 . . . Allies Corrupted 1 | . . . . . . . . . . . . . . 1 . . . . . . . Allies Melted . | . . . . . . . . . . . . . . . . . . . . . . Intel | -11 -10 -10 -10 -9 -8 -8 -8 -8 -8 -7 -7 -7 -7 -7 -7 -7 -7 -6 -6 -6 -6 ------- Run | Yrd Mat Min Exi Min Mat Gar Mat Gar Mat Fac Was Fac Gar Fac Low Low Dat Pro Fac Gar Fac Robot Analysis Total 3 | . 1 . . . 2 . . . . . . . . . . . . . . . . Derelict Logs Recovered 7 | . . 2 . 1 . . . . . . . . . . 3 . . 1 . . . Drone Launches . | . . . . . . . . . . . . . . . . . . . . . . Drone Recoveries . | . . . . . . . . . . . . . . . . . . . . . . Exploration | -11 -10 -10 -10 -9 -8 -8 -8 -8 -8 -7 -7 -7 -7 -7 -7 -7 -7 -6 -6 -6 -6 ------------- Run | Yrd Mat Min Exi Min Mat Gar Mat Gar Mat Fac Was Fac Gar Fac Low Low Dat Pro Fac Gar Fac Turns Passed 23568 | 8 1902 1063 527 1166 334 1433 1787 2155 944 545 525 68 1518 2452 1549 955 211 1072 1147 1729 478 Spaces Moved 9464 | 7 979 497 219 465 150 657 683 864 316 255 274 24 791 856 496 360 85 425 344 546 171 Core 66 | . . . . . . . . . . . . . . . . . . . . . 66 Treads 9382 | . 970 497 219 465 150 657 683 864 316 255 274 24 791 856 496 360 85 425 344 546 105 Legs 16 | 7 9 . . . . . . . . . . . . . . . . . . . . Wheels . | . . . . . . . . . . . . . . . . . . . . . . Hover . | . . . . . . . . . . . . . . . . . . . . . . Flight . | . . . . . . . . . . . . . . . . . . . . . . Fastest Speed 50 | 120 120 160 240 240 160 160 160 160 160 160 152 152 152 232 240 240 240 240 240 240 50 Average Speed 201 | 120 159 210 240 240 204 169 186 184 160 160 158 165 161 234 257 240 240 240 240 249 166 Slowest Speed 320 | 120 160 240 240 240 240 240 240 240 160 160 160 232 232 320 320 240 240 240 245 320 240 Overloaded Moves . | . . . . . . . . . . . . . . . . . . . . . . Propulsion Burnouts . | . . . . . . . . . . . . . . . . . . . . . . Robots Hopped 2 | . . . . . . . . 2 . . . . . . . . . . . . . Cave-ins Triggered . | . . . . . . . . . . . . . . . . . . . . . . Exploration Rate (%) 55 | 2 95 86 61 97 20 93 58 86 29 10 97 1 97 35 75 48 68 64 11 86 8 Regions Visited 21 Branch Regions 7 Pre-discovered Areas 5 | . . 1 1 . . . . . . . . . . . 2 . 1 . . . . Known Exits Taken 8 | . . . . . 1 . 1 . 1 . . 1 . 1 1 . . 1 1 . . Unknown Exits Taken 7 | 1 1 1 1 1 . . . . . . . . . . . 1 1 . . . . Scrap Searched 13 | . . 1 . 1 . . . . . . . . . . 6 1 . 4 . . . Spaces Dug 122 | . 6 5 . . . . 14 5 3 5 . . . 22 31 2 . 14 9 2 4 Terrain Destroyed 872 | . 35 11 . . . 72 21 88 6 10 8 . 147 126 102 6 . 39 39 6 156 Melee 9 | . . . . . . . 5 . . 1 . . . 3 . . . . . . . Projectile 108 | . . . . . . . 16 . 6 9 8 . . 21 13 6 . 4 16 1 8 AOE 755 | . 35 11 . . . 72 . 88 . . . . 147 102 89 . . 35 23 5 148 Terrain Rammed . | . . . . . . . . . . . . . . . . . . . . . . Walls Destroyed . | . . . . . . . . . . . . . . . . . . . . . . Machines Disabled . | . . . . . . . . . . . . . . . . . . . . . . Actions | -11 -10 -10 -10 -9 -8 -8 -8 -8 -8 -7 -7 -7 -7 -7 -7 -7 -7 -6 -6 -6 -6 --------- Run | Yrd Mat Min Exi Min Mat Gar Mat Gar Mat Fac Was Fac Gar Fac Low Low Dat Pro Fac Gar Fac Total 12586 | 6 1210 505 222 496 175 867 1042 1258 679 349 346 52 918 1112 702 434 93 455 578 789 298 Wait 1667 | . 133 . . 12 3 89 230 142 300 57 42 26 38 119 143 28 . . 137 110 58 Move 9443 | 6 978 496 218 464 150 656 683 859 315 255 273 23 790 855 495 359 84 424 344 545 171 Hop 2 | . . . . . . . . 2 . . . . . . . . . . . . . Pick Up 120 | . 16 1 1 6 7 12 9 7 6 2 3 . 6 5 4 4 . 6 12 12 1 Fast Attach 49 | . 2 . . . 1 2 4 6 4 . 3 . 5 3 5 . 1 1 7 3 2 Attach 66 | . 3 . . 1 4 4 4 1 3 2 1 . 1 9 3 2 2 3 3 14 6 Detach 18 | . 2 . . . . 1 1 2 . . . . 3 2 3 . 1 . 1 . 2 Swap 238 | . 7 1 1 2 4 30 17 40 10 10 6 3 20 29 11 4 2 4 9 14 14 Drop 121 | . 11 . 2 1 5 15 8 20 10 1 9 . 5 2 3 1 2 1 15 9 1 Fire 672 | . 55 3 . 9 1 45 73 75 31 21 8 . 48 82 35 12 1 16 47 73 37 Melee 39 | . . . . . . 13 12 6 . 1 1 . . 6 . . . . . . . Ram 6 | . . . . . . . . . . . . . . . . . . . . . 6 Kick . | . . . . . . . . . . . . . . . . . . . . . . Crush 10 | . 3 4 . 1 . . 1 . . . . . . . . . . . 1 . . Escape Stasis 4 | . . . . . . . . . . . . . 2 . . . . . 2 . . Rewire 122 | . . . . . . . . 98 . . . . . . . 24 . . . . . Trap . | . . . . . . . . . . . . . . . . . . . . . . Miscellaneous 9 | . . . . . . . . . . . . . . . . . . . . 9 . Route ------- -11/Scrapyard -10/Materials (discovered 4 exits: *Mat x3 / [*Min]) -10/Mines (discovered 3 exits: *Mat x2 / *Exi) -10/Exiles (discovered 2 exits: [*Min x2]) -9/Mines (discovered 2 exits: *Mat x2) -8/Materials (discovered 2 exits: Fac / Gar) -8/Garrison (discovered 3 exits: *Mat x3) -8/Materials (discovered 2 exits: *Fac / Gar) -8/Garrison (discovered 3 exits: *Mat x3) -8/Materials -7/Factory (discovered 4 exits: Sto x2 / Low x2) -7/Waste -7/Factory -7/Garrison (discovered 4 exits: *Fac x4) -7/Factory (discovered 7 exits: *Fac x3 / Sto x2 / *Low x2) -7/Lower Caves -7/Lower Caves (discovered 2 exits: *Fac / *Dat) -7/Data Miner -6/Proximity Caves -6/Factory (discovered 2 exits: [*Low] / Gar) -6/Garrison (discovered 3 exits: [*Fac x3]) -6/Factory History --------- Turn | Location | Event 1 | -11/Scrapyard | Discovered new exit (range 3) 9 | -11/Scrapyard | Entered Materials 310 | -10/Materials | Build established: Mutant 383 | -10/Materials | Discovered new exit (range 14) 697 | -10/Materials | Discovered new exit (range 12) 984 | -10/Materials | Discovered new exit (range 15) 1441 | -10/Materials | Discovered new exit (range 15) 1911 | -10/Materials | Entered Mines 1915 | -10/Mines | Met a Derelict bent on vengeance 2160 | -10/Mines | Deemed a non-threat by the Exiles lab entrance 2281 | -10/Mines | Learned location of Zion (-6) 2427 | -10/Mines | Assisted by bots powering up and referring to "LRC-V3" 2513 | -10/Mines | Discovered new exit (range 7) 2866 | -10/Mines | Identified exit to Materials 2965 | -10/Mines | Discovered new exit (range 5) 2974 | -10/Mines | Entered Exiles 2974 | -10/Exiles | Accompanied by 3 allies 3010 | -10/Exiles | Discovered new exit (range 15) 3039 | -10/Exiles | Met 8R-AWN 3073 | -10/Exiles | Met EX-HEX 3140 | -10/Exiles | Met EX-BIN 3176 | -10/Exiles | Met EX-DEC 3472 | -10/Exiles | Discovered new exit (range 14) 3501 | -10/Exiles | Entered Mines 3501 | -9/Mines | Accompanied by 3 allies 3508 | -9/Mines | Received a Rocket Launcher from a helpful Derelict 3580 | -9/Mines | A weapon hastily lodged in a ceiling crevice suddenly fell to the ground 3709 | -9/Mines | Learned location of 1 exit from Materials 3716 | -9/Mines | Discovered new exit (range 8) 3971 | -9/Mines | Discovered new exit (range 5) 4164 | -9/Mines | Found a damaged Exp. Sensor Array with a note attached 4170 | -9/Mines | Found Prototype Device 4667 | -9/Mines | Entered Materials 4667 | -8/Materials | Accompanied by 3 allies 4667 | -8/Materials | Evolved 4 slots: Propulsion x1, Utility x2, Weapon x1 4668 | -8/Materials | Identified exit to Factory 4880 | -8/Materials | Central database locked down 4889 | -8/Materials | Identified Exp. Sensor Array 4968 | -8/Materials | Build established: Bomber 4999 | -8/Materials | Identified exit to Garrison 5001 | -8/Materials | Entered Garrison 5001 | -8/Garrison | Accompanied by 3 allies 5111 | -8/Garrison | Triggered checkpoint 5143 | -8/Garrison | Garrison Relay disabled 5258 | -8/Garrison | Triggered checkpoint 5280 | -8/Garrison | Triggered checkpoint 5320 | -8/Garrison | Destroyed 8 combat bots 5353 | -8/Garrison | Triggered checkpoint 5419 | -8/Garrison | Garrison Relay disabled 5626 | -8/Garrison | Discovered new exit (range 5) 5650 | -8/Garrison | Phase Generator disabled 5807 | -8/Garrison | Triggered checkpoint 5807 | -8/Garrison | Garrison Relay disabled 5851 | -8/Garrison | Discovered new exit (range 5) 5921 | -8/Garrison | Spotted B-75 Beast 5947 | -8/Garrison | Learned Materials security intel 6015 | -8/Garrison | Triggered checkpoint 6083 | -8/Garrison | Triggered checkpoint 6137 | -8/Garrison | Garrison Relay disabled 6186 | -8/Garrison | Garrison Relay disabled 6188 | -8/Garrison | Garrison Relay disabled 6190 | -8/Garrison | Garrison Relay disabled 6192 | -8/Garrison | Garrison Relay disabled 6260 | -8/Garrison | Build established: Tank 6268 | -8/Garrison | Discovered new exit (range 8) 6365 | -8/Garrison | Found Imp. Powered Armor 6434 | -8/Garrison | Entered Materials 6648 | -8/Materials | Build established: Scavenger-Tank 6834 | -8/Materials | First assault squad dispatched 7592 | -8/Materials | Build established: Scavenger-Gunner 7716 | -8/Materials | Repaired Broken Exp. Sensor Array? 7744 | -8/Materials | Garrison activated, responded to threat 8189 | -8/Materials | Discovered exit to Factory (range 16) 8221 | -8/Materials | Identified exit to Garrison 8221 | -8/Materials | Entered Garrison 8225 | -8/Garrison | Triggered checkpoint 8279 | -8/Garrison | Garrison Relay disabled 8413 | -8/Garrison | Triggered checkpoint 8431 | -8/Garrison | Triggered checkpoint 8472 | -8/Garrison | Triggered checkpoint 8543 | -8/Garrison | Triggered checkpoint 8577 | -8/Garrison | Triggered checkpoint 8717 | -8/Garrison | Triggered checkpoint 8752 | -8/Garrison | Learned Materials security intel 8752 | -8/Garrison | Identified exit to Materials 8761 | -8/Garrison | Build established: Gunner 8789 | -8/Garrison | Garrison Relay disabled 8807 | -8/Garrison | Triggered checkpoint 8808 | -8/Garrison | Core integrity fell below 50% 9428 | -8/Garrison | Triggered checkpoint 9548 | -8/Garrison | Build established: Commander-Gunner 9656 | -8/Garrison | Phase Generator disabled 9664 | -8/Garrison | Garrison Relay disabled 9857 | -8/Garrison | Triggered checkpoint 10151 | -8/Garrison | Triggered checkpoint 10182 | -8/Garrison | Garrison Relay disabled 10262 | -8/Garrison | Build established: Gunner 10376 | -8/Garrison | Entered Materials 10834 | -8/Materials | Build established: Hacker-Gunner 11132 | -8/Materials | Core integrity fell below 20% 11282 | -8/Materials | Discovered exit to Factory (range 13) 11320 | -8/Materials | Entered Factory 11320 | -7/Factory | Evolved 2 slots: Utility x2 11642 | -7/Factory | Build established: Skirmisher 11687 | -7/Factory | Identified exit to Storage 11687 | -7/Factory | Identified exit to Lower Caves 11865 | -7/Factory | Sucked down chute 11865 | -7/Factory | Entered Waste 11866 | -7/Waste | Joined by Warlord forces that had cleared the area 12064 | -7/Waste | Build established: Tank 12345 | -7/Waste | Discovered new exit (range 11) 12390 | -7/Waste | Entered Factory 12390 | -7/Factory | Accompanied by 19 allies 12440 | -7/Factory | Identified exit to Garrison 12458 | -7/Factory | Entered Garrison 12458 | -7/Garrison | Accompanied by 19 allies 12498 | -7/Garrison | Triggered checkpoint 12517 | -7/Garrison | Discovered new exit (range 6) 12605 | -7/Garrison | Triggered checkpoint 12606 | -7/Garrison | Triggered checkpoint 12616 | -7/Garrison | Triggered checkpoint 12656 | -7/Garrison | Lost 5 allies 12686 | -7/Garrison | Triggered checkpoint 12707 | -7/Garrison | Garrison Relay disabled 12735 | -7/Garrison | Discovered new exit (range 10) 12885 | -7/Garrison | Phase Generator disabled 13046 | -7/Garrison | Triggered checkpoint 13076 | -7/Garrison | Garrison Relay disabled 13153 | -7/Garrison | Discovered new exit (range 12) 13232 | -7/Garrison | Triggered checkpoint 13296 | -7/Garrison | Learned Factory security intel 13325 | -7/Garrison | Discovered new exit (range 3) 13352 | -7/Garrison | Triggered checkpoint 13378 | -7/Garrison | Garrison Relay disabled 13401 | -7/Garrison | Rescued a captive Derelict 13494 | -7/Garrison | Found embedded Infiltrators 13712 | -7/Garrison | Triggered checkpoint 13736 | -7/Garrison | Garrison Relay disabled 13976 | -7/Garrison | Entered Factory 13976 | -7/Factory | Accompanied by 15 allies 14087 | -7/Factory | Build established: Hauler-Tank 14364 | -7/Factory | Discovered new exit (range 9) 14417 | -7/Factory | Lost 5 allies 14448 | -7/Factory | Identified exit to Factory 14529 | -7/Factory | Discovered exit to Factory (range 9) 14776 | -7/Factory | First assault squad dispatched 14929 | -7/Factory | Garrison activated, responded to threat 15005 | -7/Factory | Lost 8 allies 15448 | -7/Factory | Discovered exit to Factory (range 5) 16114 | -7/Factory | Lost 3 parts (1n1u1w) 16122 | -7/Factory | Build established: Hauler-Mutant 16371 | -7/Factory | Garrison activated, responded to threat 16428 | -7/Factory | Entered Lower Caves 16493 | -7/Lower Caves | Met a Warlord Commander 16494 | -7/Lower Caves | Learned location of Warlord (-4) 16495 | -7/Lower Caves | Warlord Commander delivered Encrypted Comm Array 16502 | -7/Lower Caves | Found Encrypted Comm Array 16603 | -7/Lower Caves | Learned location of Extension (-5) 16619 | -7/Lower Caves | Build established: Hauler-Gunner 17049 | -7/Lower Caves | Build established: Hauler-Skirmisher 17776 | -7/Lower Caves | Attracted the attention of an 0b10 checkpoint 17917 | -7/Lower Caves | Identified exit to Lower Caves 17920 | -7/Lower Caves | Learned Factory emergency access door positions 17977 | -7/Lower Caves | Entered another Lower Caves area 17977 | -7/Lower Caves | Discovered exit to Factory (range 11) 18019 | -7/Lower Caves | Attacked by a delusional Derelict stockpiling Unaware 18087 | -7/Lower Caves | Build established: Hauler-Tank 18796 | -7/Lower Caves | Discovered new exit (range 12) 18798 | -7/Lower Caves | Attracted the attention of an 0b10 checkpoint 18932 | -7/Lower Caves | Entered Data Miner 18932 | -7/Data Miner | Accompanied by 4 allies 18932 | -7/Data Miner | Discovered new exit (range 6) 18982 | -7/Data Miner | Met Data Miner 19022 | -7/Data Miner | Learned location of Section 7 (-3) 19058 | -7/Data Miner | Received God Mode back door access code from Data Miner 19143 | -7/Data Miner | Entered Proximity Caves 19143 | -6/Proximity Caves | Accompanied by 4 allies 19546 | -6/Proximity Caves | Ambushed by research squad 19548 | -6/Proximity Caves | P-60 Hacker assimilated allied BI-K1I(g) 19855 | -6/Proximity Caves | Build established: Hauler-Gunner 19993 | -6/Proximity Caves | Learned Factory interactive machine intel 20145 | -6/Proximity Caves | Discovered exit to Factory (range 5) 20215 | -6/Proximity Caves | Entered Factory 20215 | -6/Factory | Accompanied by 1 ally 20215 | -6/Factory | Evolved 2 slots: Power x1, Propulsion x1 20217 | -6/Factory | Loaded intel: 51 interactive machine locations 20971 | -6/Factory | Build established: Hauler-Tank 21058 | -6/Factory | Discovered new exit (range 3) 21275 | -6/Factory | Build established: Hauler-Gunner 21362 | -6/Factory | Identified exit to Garrison 21362 | -6/Factory | Entered Garrison 21444 | -6/Garrison | Learned Factory security intel 21556 | -6/Garrison | Garrison Relay disabled 21830 | -6/Garrison | Triggered checkpoint 21884 | -6/Garrison | Garrison Relay disabled 21948 | -6/Garrison | Discovered new exit (range 15) 21970 | -6/Garrison | Triggered checkpoint 21983 | -6/Garrison | Build established: Hauler-Tank 22204 | -6/Garrison | Triggered checkpoint 22350 | -6/Garrison | Triggered checkpoint 22390 | -6/Garrison | Lost 3 parts (1p1n1u) 22394 | -6/Garrison | Discovered new exit (range 70) 22394 | -6/Garrison | Discovered new exit (range 26) 22394 | -6/Garrison | Discovered new exit (range 40) 22410 | -6/Garrison | Garrison Relay disabled 22895 | -6/Garrison | Garrison Relay disabled 23006 | -6/Garrison | Phase Generator disabled 23091 | -6/Garrison | Entered Factory 23441 | -6/Factory | First assault squad dispatched 23455 | -6/Factory | Specialist reinforcements revealed to be Infiltrators 23456 | -6/Factory | Incoming assault squad redirected 23507 | -6/Factory | System corruption reached 10% 23511 | -6/Factory | Core integrity fell below 50% 23513 | -6/Factory | Released all parts (1) 23519 | -6/Factory | Core integrity fell below 20% 23525 | -6/Factory | Destroyed 10 combat bots 23541 | -6/Factory | Lost 15 parts (2p3n5u5w) 23569 | -6/Factory | Destroyed by Y-54 Guardian with Gatling Laser Last Messages --------------- 23513_ G-50 Soldier overheating. 23515_ Acquired Encrypted Comm Array. 23515_ G-50 Soldier overheating. 23516_ K-01 Serf collects debris. 23516_ B-48 Gladiator destroyed. 23517_ U-05 Engineer lays Concrete. 23528_ Acquired Imp. Medium Treads. 23534_ Slammed into R-10 Processor. 23536_ Slammed into T-07 Excavator. 23536_ Destabilizing: Core damaged (-25). 23540_ Slug penetrates T-07 Excavator. 23540_ T-07 Excavator destroyed. 23540_ K-01 Serf collects debris. 23541_ System corrupted: Matter fused (-10). 23543_ Acquired 14 matter. 23552_ Acquired Hacking Suite. 23560_ System corrupted: Energy discharge (-36). 23565_ Slammed into Y-54 Guardian. 23566_ Slammed into K-01 Serf. 23568_ Destabilizing: Core damaged (-25). Map ----- +----------------------------------------------------+ | ?????????????????????????????????????????????????? | | ?????????????????????????????????????????????????? | | ?????????????????????????????????????????????????? | | ?????????????????????????????????????????????????? | | ?????????????????????????????????????????????????? | | ?????????????????????????????????????????????????? | | ?????????????????????????????????????????????????? | | ?????????????????????????????????????????????????? | | ?????????????????????????????????????????????????? | | ?????????????????????????????????????????????????? | | ?????????????????????????????????????????????????? | | ?????????????????????????????????????????????????? | | ???????????????########??????????????????????????? | | ???????????????# [ #??????????????????????????? | | ???????????????# #??????????????????????????? | | ???????????????# """#??????????????????????????? | | ???????????????# """#???????#??????????????????? | | ???????????????# """#?????? #??????????????????? | | ???????????????# #?????? #??????????????????? | | ???????????????####+###????? +??????????????????? | | ?################# #?????? #??????????????????? | | ## = ! #????? #??????????????????? | | # ############### #????? ##?????????????????? | | #T ############??## ##????t ##### ????????? | | ## ## ???# ######k ????????? | | ?# ## """""""""??# Y @ t ????????? | | ## ## ######### ????????? | | # """"""""" #???????? ##### ????????? | | + #?????????#####?????????????????? | | # """"""""" #???????????????????????????????? | | #% # #???????????????????????????????? | | # # """"""""" #???????????????????????????????? | | # # #???????????????????????????????? | | # # """""""""?????????????????????????????????? | | # #! ??????????????????????????????????? | | # # * ! ??????""??????????????????????????? | | # ########### ? ??????????????????????????? | | #% ##%"###"### # # ?????????????????????????? | | # #=|!!%! |% ????????????????????????? | | # !!|!!!% ! # ?????????????????????????? | | # [%|=!! % ?????????????????????????? | | # !!/% % # ?????????????????????????? | | # !% " ?????????????????????????? | | # % # ??????????????????????????? | | # # % # ??????????????????????????? | | # # ???????????????????????????? | | # # = | ???????????????????????????? | | # %+ =! ???????????????????????????? | | # ## # ##????????????????????????????? | | # # ! # ?????????????????????????????? | +----------------------------------------------------+ Best States ------------- Heat Dissipation 75 Coolant Potential 80 Energy Generation 29 Energy Capacity 500 Matter Stores 300 Matter Capacity 300 Sight Range 16 Robot Scan Range 20 Terrain Scan Density 10 ECM Strength 2 Base Temperature (-) 100 Corruption Block 8 Armor Coverage 1200 Resistance: EM 20 Phase Shifting 15 Evasion (%) 55 Recoil Reduction 4 Offensive Hacking 20 Item Schematics ----------------- Huge Storage Unit | -10/Materials | Hacked Combat Drone Bay | -7/Data Miner | Free Lgt. Regenerative Plating | -7/Data Miner | Free Exp. Targeting Computer | -7/Data Miner | Free Cld. Aerolev Unit | -7/Data Miner | Free Imp. Heavy Machine Gun | -7/Data Miner | Free Arm. Medium Treads | -7/Data Miner | Free Imp. Recalibrator | -7/Data Miner | Free Imp. Remote Datajack | -7/Data Miner | Free Coil Gun | -7/Data Miner | Free Mic. Fission Core | -7/Data Miner | Free Imp. Gyrokinetic Inverter | -7/Data Miner | Free Imp. Fusion Compressor | -7/Data Miner | Free Robot Schematics ------------------ R-10 Processor | -7/Data Miner | Free M-28 Smith | -7/Data Miner | Free B-48 Gladiator | -7/Data Miner | Free G-50 Soldier | -7/Data Miner | Free A-15 Conveyor | -7/Data Miner | Free E-15 Imp | -7/Data Miner | Free W-25 Informer | -7/Data Miner | Free G-47 Trooper | -6/Factory | Hacked Fabricated ------------ Nothing Alien Tech Used ----------------- None Achievements -------------- None Challenges ------------ None Game ------ Seed RecoilComponentDerivative Manual? 0 Play Time 02:49:19 Cumulative 340.5 hours Start 2024.10.18 @ 16:55:19 End 2024.10.20 @ 19:02:56 Sessions 9 Manual Loads 0 Difficulty Rogue Special Mode None Game No. 170 Rogue 170 Adventurer 0 Explorer 0 Win Type - Total 9 Types 5/1/3/0/0/0/0/0/0 Lore% 84 Gallery% 88 Achievement% 73 Wizard Run 0 Options --------- Layout 0 ASCII 0 Keyboard 0 Movement Mouse Keybinds 0 Fullscreen 2 Font 12/Smallcaps Map View 83x54 Zoom Use 0% Tactical HUD 1 Map Filters NONE Filters NONE Steam 1 RUN: d117b116-5577-41ea-b7c3-f40c3b690a52